Workbook

Sheet P&L Act to Bud
V1: TOTAL
F2: Jan 23 | H2: Budget | J2: $ Over Budget | L2: % of Budget | N2: Feb 23 | P2: Budget | R2: $ Over Budget | T2: % of Budget | V2: Jan - Feb 23 | X2: Budget | Z2: $ Over Budget | AB2: % of Budget
B3: Ordinary Income/Expense
D4: Income
E5: 40000 · Member Dues and Fees | F5: 66850 | H5: 66250 | J5: =ROUND((F5-H5),5) -> 600 | L5: =ROUND(IF(H5=0, IF(F5=0, 0, 1), F5/H5),5) -> 1.00906 | N5: 65600 | P5: 66250 | R5: =ROUND((N5-P5),5) -> -650 | T5: =ROUND(IF(P5=0, IF(N5=0, 0, 1), N5/P5),5) -> 0.99019 | V5: =ROUND(F5+N5,5) -> 132450 | X5: =ROUND(H5+P5,5) -> 132500 | Z5: =ROUND((V5-X5),5) -> -50 | AB5: =ROUND(IF(X5=0, IF(V5=0, 0, 1), V5/X5),5) -> 0.99962
E6: 40100 · Meal Sales | F6: 37371 | H6: 19000 | J6: =ROUND((F6-H6),5) -> 18371 | L6: =ROUND(IF(H6=0, IF(F6=0, 0, 1), F6/H6),5) -> 1.96689 | N6: 49613 | P6: 33000 | R6: =ROUND((N6-P6),5) -> 16613 | T6: =ROUND(IF(P6=0, IF(N6=0, 0, 1), N6/P6),5) -> 1.50342 | V6: =ROUND(F6+N6,5) -> 86984 | X6: =ROUND(H6+P6,5) -> 52000 | Z6: =ROUND((V6-X6),5) -> 34984 | AB6: =ROUND(IF(X6=0, IF(V6=0, 0, 1), V6/X6),5) -> 1.67277
E7: 40200 · Beverage Sales | F7: 7739 | H7: 5063 | J7: =ROUND((F7-H7),5) -> 2676 | L7: =ROUND(IF(H7=0, IF(F7=0, 0, 1), F7/H7),5) -> 1.52854 | N7: 7249 | P7: 6289 | R7: =ROUND((N7-P7),5) -> 960 | T7: =ROUND(IF(P7=0, IF(N7=0, 0, 1), N7/P7),5) -> 1.15265 | V7: =ROUND(F7+N7,5) -> 14988 | X7: =ROUND(H7+P7,5) -> 11352 | Z7: =ROUND((V7-X7),5) -> 3636 | AB7: =ROUND(IF(X7=0, IF(V7=0, 0, 1), V7/X7),5) -> 1.3203
E8: 40300 · Service Fees | F8: 3430 | H8: 578 | J8: =ROUND((F8-H8),5) -> 2852 | L8: =ROUND(IF(H8=0, IF(F8=0, 0, 1), F8/H8),5) -> 5.93426 | N8: 3947 | P8: 539 | R8: =ROUND((N8-P8),5) -> 3408 | T8: =ROUND(IF(P8=0, IF(N8=0, 0, 1), N8/P8),5) -> 7.32282 | V8: =ROUND(F8+N8,5) -> 7377 | X8: =ROUND(H8+P8,5) -> 1117 | Z8: =ROUND((V8-X8),5) -> 6260 | AB8: =ROUND(IF(X8=0, IF(V8=0, 0, 1), V8/X8),5) -> 6.6043
E9: 40400 · Rental Income | F9: 0 | H9: 0 | J9: =ROUND((F9-H9),5) -> 0 | L9: =ROUND(IF(H9=0, IF(F9=0, 0, 1), F9/H9),5) -> 0 | N9: 0 | P9: 152 | R9: =ROUND((N9-P9),5) -> -152 | T9: =ROUND(IF(P9=0, IF(N9=0, 0, 1), N9/P9),5) -> 0 | V9: =ROUND(F9+N9,5) -> 0 | X9: =ROUND(H9+P9,5) -> 152 | Z9: =ROUND((V9-X9),5) -> -152 | AB9: =ROUND(IF(X9=0, IF(V9=0, 0, 1), V9/X9),5) -> 0
E10: 40800 · Other Income | F10: 75 | H10: 168 | J10: =ROUND((F10-H10),5) -> -93 | L10: =ROUND(IF(H10=0, IF(F10=0, 0, 1), F10/H10),5) -> 0.44643 | N10: 900 | P10: 919 | R10: =ROUND((N10-P10),5) -> -19 | T10: =ROUND(IF(P10=0, IF(N10=0, 0, 1), N10/P10),5) -> 0.97933 | V10: =ROUND(F10+N10,5) -> 975 | X10: =ROUND(H10+P10,5) -> 1087 | Z10: =ROUND((V10-X10),5) -> -112 | AB10: =ROUND(IF(X10=0, IF(V10=0, 0, 1), V10/X10),5) -> 0.89696
D11: Total Income | F11: =ROUND(SUM(F4:F10),5) -> 115465 | H11: =ROUND(SUM(H4:H10),5) -> 91059 | J11: =ROUND((F11-H11),5) -> 24406 | L11: =ROUND(IF(H11=0, IF(F11=0, 0, 1), F11/H11),5) -> 1.26802 | N11: =ROUND(SUM(N4:N10),5) -> 127309 | P11: =ROUND(SUM(P4:P10),5) -> 107149 | R11: =ROUND((N11-P11),5) -> 20160 | T11: =ROUND(IF(P11=0, IF(N11=0, 0, 1), N11/P11),5) -> 1.18815 | V11: =ROUND(F11+N11,5) -> 242774 | X11: =ROUND(H11+P11,5) -> 198208 | Z11: =ROUND((V11-X11),5) -> 44566 | AB11: =ROUND(IF(X11=0, IF(V11=0, 0, 1), V11/X11),5) -> 1.22484
C12: Gross Profit | F12: =F11 -> 115465 | H12: =H11 -> 91059 | J12: =ROUND((F12-H12),5) -> 24406 | L12: =ROUND(IF(H12=0, IF(F12=0, 0, 1), F12/H12),5) -> 1.26802 | N12: =N11 -> 127309 | P12: =P11 -> 107149 | R12: =ROUND((N12-P12),5) -> 20160 | T12: =ROUND(IF(P12=0, IF(N12=0, 0, 1), N12/P12),5) -> 1.18815 | V12: =ROUND(F12+N12,5) -> 242774 | X12: =ROUND(H12+P12,5) -> 198208 | Z12: =ROUND((V12-X12),5) -> 44566 | AB12: =ROUND(IF(X12=0, IF(V12=0, 0, 1), V12/X12),5) -> 1.22484
D13: Expense
E14: 55100 · Food Purchased | F14: 16608 | H14: 17020 | J14: =ROUND((F14-H14),5) -> -412 | L14: =ROUND(IF(H14=0, IF(F14=0, 0, 1), F14/H14),5) -> 0.97579 | N14: 18338 | P14: 20000 | R14: =ROUND((N14-P14),5) -> -1662 | T14: =ROUND(IF(P14=0, IF(N14=0, 0, 1), N14/P14),5) -> 0.9169 | V14: =ROUND(F14+N14,5) -> 34946 | X14: =ROUND(H14+P14,5) -> 37020 | Z14: =ROUND((V14-X14),5) -> -2074 | AB14: =ROUND(IF(X14=0, IF(V14=0, 0, 1), V14/X14),5) -> 0.94398
E15: 55200 · Beverages | F15: 12326 | H15: 4051 | J15: =ROUND((F15-H15),5) -> 8275 | L15: =ROUND(IF(H15=0, IF(F15=0, 0, 1), F15/H15),5) -> 3.04271 | N15: 5382 | P15: 7805 | R15: =ROUND((N15-P15),5) -> -2423 | T15: =ROUND(IF(P15=0, IF(N15=0, 0, 1), N15/P15),5) -> 0.68956 | V15: =ROUND(F15+N15,5) -> 17708 | X15: =ROUND(H15+P15,5) -> 11856 | Z15: =ROUND((V15-X15),5) -> 5852 | AB15: =ROUND(IF(X15=0, IF(V15=0, 0, 1), V15/X15),5) -> 1.49359
E16: 55300 · Kitchen Employee Expense | F16: 31159 | H16: 30332 | J16: =ROUND((F16-H16),5) -> 827 | L16: =ROUND(IF(H16=0, IF(F16=0, 0, 1), F16/H16),5) -> 1.02726 | N16: 31421 | P16: 30332 | R16: =ROUND((N16-P16),5) -> 1089 | T16: =ROUND(IF(P16=0, IF(N16=0, 0, 1), N16/P16),5) -> 1.0359 | V16: =ROUND(F16+N16,5) -> 62580 | X16: =ROUND(H16+P16,5) -> 60664 | Z16: =ROUND((V16-X16),5) -> 1916 | AB16: =ROUND(IF(X16=0, IF(V16=0, 0, 1), V16/X16),5) -> 1.03158
E17: 55400 · Front of House Employee Expense | F17: 24021 | H17: 30425 | J17: =ROUND((F17-H17),5) -> -6404 | L17: =ROUND(IF(H17=0, IF(F17=0, 0, 1), F17/H17),5) -> 0.78952 | N17: 23094 | P17: 30425 | R17: =ROUND((N17-P17),5) -> -7331 | T17: =ROUND(IF(P17=0, IF(N17=0, 0, 1), N17/P17),5) -> 0.75905 | V17: =ROUND(F17+N17,5) -> 47115 | X17: =ROUND(H17+P17,5) -> 60850 | Z17: =ROUND((V17-X17),5) -> -13735 | AB17: =ROUND(IF(X17=0, IF(V17=0, 0, 1), V17/X17),5) -> 0.77428
E18: 55500 · Kitchen Supplies | F18: 1058 | H18: 1098 | J18: =ROUND((F18-H18),5) -> -40 | L18: =ROUND(IF(H18=0, IF(F18=0, 0, 1), F18/H18),5) -> 0.96357 | N18: 464 | P18: 1098 | R18: =ROUND((N18-P18),5) -> -634 | T18: =ROUND(IF(P18=0, IF(N18=0, 0, 1), N18/P18),5) -> 0.42259 | V18: =ROUND(F18+N18,5) -> 1522 | X18: =ROUND(H18+P18,5) -> 2196 | Z18: =ROUND((V18-X18),5) -> -674 | AB18: =ROUND(IF(X18=0, IF(V18=0, 0, 1), V18/X18),5) -> 0.69308
E19: 55800 · Entertainment | F19: 654 | H19: 5426 | J19: =ROUND((F19-H19),5) -> -4772 | L19: =ROUND(IF(H19=0, IF(F19=0, 0, 1), F19/H19),5) -> 0.12053 | N19: 4854 | P19: 5426 | R19: =ROUND((N19-P19),5) -> -572 | T19: =ROUND(IF(P19=0, IF(N19=0, 0, 1), N19/P19),5) -> 0.89458 | V19: =ROUND(F19+N19,5) -> 5508 | X19: =ROUND(H19+P19,5) -> 10852 | Z19: =ROUND((V19-X19),5) -> -5344 | AB19: =ROUND(IF(X19=0, IF(V19=0, 0, 1), V19/X19),5) -> 0.50756
E20: 60000 · General & Admin Employee Exp | F20: 24908 | H20: 26572 | J20: =ROUND((F20-H20),5) -> -1664 | L20: =ROUND(IF(H20=0, IF(F20=0, 0, 1), F20/H20),5) -> 0.93738 | N20: 24328 | P20: 26572 | R20: =ROUND((N20-P20),5) -> -2244 | T20: =ROUND(IF(P20=0, IF(N20=0, 0, 1), N20/P20),5) -> 0.91555 | V20: =ROUND(F20+N20,5) -> 49236 | X20: =ROUND(H20+P20,5) -> 53144 | Z20: =ROUND((V20-X20),5) -> -3908 | AB20: =ROUND(IF(X20=0, IF(V20=0, 0, 1), V20/X20),5) -> 0.92646
E21: 60700 · Advertising & Promotional | F21: 887 | H21: 2065 | J21: =ROUND((F21-H21),5) -> -1178 | L21: =ROUND(IF(H21=0, IF(F21=0, 0, 1), F21/H21),5) -> 0.42954 | N21: 1139 | P21: 2065 | R21: =ROUND((N21-P21),5) -> -926 | T21: =ROUND(IF(P21=0, IF(N21=0, 0, 1), N21/P21),5) -> 0.55157 | V21: =ROUND(F21+N21,5) -> 2026 | X21: =ROUND(H21+P21,5) -> 4130 | Z21: =ROUND((V21-X21),5) -> -2104 | AB21: =ROUND(IF(X21=0, IF(V21=0, 0, 1), V21/X21),5) -> 0.49056
E22: 62020 · Dues & Subscriptions | F22: 338 | H22: 85 | J22: =ROUND((F22-H22),5) -> 253 | L22: =ROUND(IF(H22=0, IF(F22=0, 0, 1), F22/H22),5) -> 3.97647 | N22: 0 | P22: 85 | R22: =ROUND((N22-P22),5) -> -85 | T22: =ROUND(IF(P22=0, IF(N22=0, 0, 1), N22/P22),5) -> 0 | V22: =ROUND(F22+N22,5) -> 338 | X22: =ROUND(H22+P22,5) -> 170 | Z22: =ROUND((V22-X22),5) -> 168 | AB22: =ROUND(IF(X22=0, IF(V22=0, 0, 1), V22/X22),5) -> 1.98824
E23: 62030 · Equipment Rental | F23: 333 | H23: 2101 | J23: =ROUND((F23-H23),5) -> -1768 | L23: =ROUND(IF(H23=0, IF(F23=0, 0, 1), F23/H23),5) -> 0.1585 | N23: 458 | P23: 2101 | R23: =ROUND((N23-P23),5) -> -1643 | T23: =ROUND(IF(P23=0, IF(N23=0, 0, 1), N23/P23),5) -> 0.21799 | V23: =ROUND(F23+N23,5) -> 791 | X23: =ROUND(H23+P23,5) -> 4202 | Z23: =ROUND((V23-X23),5) -> -3411 | AB23: =ROUND(IF(X23=0, IF(V23=0, 0, 1), V23/X23),5) -> 0.18824
E24: 62040 · Repairs & Maintenance | F24: 5558 | H24: 6782 | J24: =ROUND((F24-H24),5) -> -1224 | L24: =ROUND(IF(H24=0, IF(F24=0, 0, 1), F24/H24),5) -> 0.81952 | N24: 7116 | P24: 6782 | R24: =ROUND((N24-P24),5) -> 334 | T24: =ROUND(IF(P24=0, IF(N24=0, 0, 1), N24/P24),5) -> 1.04925 | V24: =ROUND(F24+N24,5) -> 12674 | X24: =ROUND(H24+P24,5) -> 13564 | Z24: =ROUND((V24-X24),5) -> -890 | AB24: =ROUND(IF(X24=0, IF(V24=0, 0, 1), V24/X24),5) -> 0.93439
E25: 62100 · Auto related | F25: 51 | H25: 64 | J25: =ROUND((F25-H25),5) -> -13 | L25: =ROUND(IF(H25=0, IF(F25=0, 0, 1), F25/H25),5) -> 0.79688 | N25: 114 | P25: 64 | R25: =ROUND((N25-P25),5) -> 50 | T25: =ROUND(IF(P25=0, IF(N25=0, 0, 1), N25/P25),5) -> 1.78125 | V25: =ROUND(F25+N25,5) -> 165 | X25: =ROUND(H25+P25,5) -> 128 | Z25: =ROUND((V25-X25),5) -> 37 | AB25: =ROUND(IF(X25=0, IF(V25=0, 0, 1), V25/X25),5) -> 1.28906
E26: 62200 · Meals and Entertainment | F26: 3278 | H26: 60 | J26: =ROUND((F26-H26),5) -> 3218 | L26: =ROUND(IF(H26=0, IF(F26=0, 0, 1), F26/H26),5) -> 54.63333 | N26: 0 | P26: 60 | R26: =ROUND((N26-P26),5) -> -60 | T26: =ROUND(IF(P26=0, IF(N26=0, 0, 1), N26/P26),5) -> 0 | V26: =ROUND(F26+N26,5) -> 3278 | X26: =ROUND(H26+P26,5) -> 120 | Z26: =ROUND((V26-X26),5) -> 3158 | AB26: =ROUND(IF(X26=0, IF(V26=0, 0, 1), V26/X26),5) -> 27.31667
E27: 62300 · Postage | F27: 0 | H27: 211 | J27: =ROUND((F27-H27),5) -> -211 | L27: =ROUND(IF(H27=0, IF(F27=0, 0, 1), F27/H27),5) -> 0 | N27: 676 | P27: 211 | R27: =ROUND((N27-P27),5) -> 465 | T27: =ROUND(IF(P27=0, IF(N27=0, 0, 1), N27/P27),5) -> 3.20379 | V27: =ROUND(F27+N27,5) -> 676 | X27: =ROUND(H27+P27,5) -> 422 | Z27: =ROUND((V27-X27),5) -> 254 | AB27: =ROUND(IF(X27=0, IF(V27=0, 0, 1), V27/X27),5) -> 1.6019
E28: 62400 · Printing | F28: 1101 | H28: 160 | J28: =ROUND((F28-H28),5) -> 941 | L28: =ROUND(IF(H28=0, IF(F28=0, 0, 1), F28/H28),5) -> 6.88125 | N28: 0 | P28: 160 | R28: =ROUND((N28-P28),5) -> -160 | T28: =ROUND(IF(P28=0, IF(N28=0, 0, 1), N28/P28),5) -> 0 | V28: =ROUND(F28+N28,5) -> 1101 | X28: =ROUND(H28+P28,5) -> 320 | Z28: =ROUND((V28-X28),5) -> 781 | AB28: =ROUND(IF(X28=0, IF(V28=0, 0, 1), V28/X28),5) -> 3.44063
E29: 62500 · Training | F29: 100 | H29: 325 | J29: =ROUND((F29-H29),5) -> -225 | L29: =ROUND(IF(H29=0, IF(F29=0, 0, 1), F29/H29),5) -> 0.30769 | N29: 850 | P29: 325 | R29: =ROUND((N29-P29),5) -> 525 | T29: =ROUND(IF(P29=0, IF(N29=0, 0, 1), N29/P29),5) -> 2.61538 | V29: =ROUND(F29+N29,5) -> 950 | X29: =ROUND(H29+P29,5) -> 650 | Z29: =ROUND((V29-X29),5) -> 300 | AB29: =ROUND(IF(X29=0, IF(V29=0, 0, 1), V29/X29),5) -> 1.46154
E30: 63000 · Insurance | F30: 2782 | H30: 3923 | J30: =ROUND((F30-H30),5) -> -1141 | L30: =ROUND(IF(H30=0, IF(F30=0, 0, 1), F30/H30),5) -> 0.70915 | N30: 1417 | P30: 3923 | R30: =ROUND((N30-P30),5) -> -2506 | T30: =ROUND(IF(P30=0, IF(N30=0, 0, 1), N30/P30),5) -> 0.3612 | V30: =ROUND(F30+N30,5) -> 4199 | X30: =ROUND(H30+P30,5) -> 7846 | Z30: =ROUND((V30-X30),5) -> -3647 | AB30: =ROUND(IF(X30=0, IF(V30=0, 0, 1), V30/X30),5) -> 0.53518
E31: 64000 · Supplies and Related | F31: 5656 | H31: 3487 | J31: =ROUND((F31-H31),5) -> 2169 | L31: =ROUND(IF(H31=0, IF(F31=0, 0, 1), F31/H31),5) -> 1.62202 | N31: 4729 | P31: 3487 | R31: =ROUND((N31-P31),5) -> 1242 | T31: =ROUND(IF(P31=0, IF(N31=0, 0, 1), N31/P31),5) -> 1.35618 | V31: =ROUND(F31+N31,5) -> 10385 | X31: =ROUND(H31+P31,5) -> 6974 | Z31: =ROUND((V31-X31),5) -> 3411 | AB31: =ROUND(IF(X31=0, IF(V31=0, 0, 1), V31/X31),5) -> 1.4891
E32: 65000 · Professional Services | F32: 4557 | H32: 3015 | J32: =ROUND((F32-H32),5) -> 1542 | L32: =ROUND(IF(H32=0, IF(F32=0, 0, 1), F32/H32),5) -> 1.51144 | N32: 4038 | P32: 3015 | R32: =ROUND((N32-P32),5) -> 1023 | T32: =ROUND(IF(P32=0, IF(N32=0, 0, 1), N32/P32),5) -> 1.3393 | V32: =ROUND(F32+N32,5) -> 8595 | X32: =ROUND(H32+P32,5) -> 6030 | Z32: =ROUND((V32-X32),5) -> 2565 | AB32: =ROUND(IF(X32=0, IF(V32=0, 0, 1), V32/X32),5) -> 1.42537
E33: 65050 · Other Outside Services | F33: 322 | H33: 2579 | J33: =ROUND((F33-H33),5) -> -2257 | L33: =ROUND(IF(H33=0, IF(F33=0, 0, 1), F33/H33),5) -> 0.12485 | N33: 971 | P33: 2579 | R33: =ROUND((N33-P33),5) -> -1608 | T33: =ROUND(IF(P33=0, IF(N33=0, 0, 1), N33/P33),5) -> 0.3765 | V33: =ROUND(F33+N33,5) -> 1293 | X33: =ROUND(H33+P33,5) -> 5158 | Z33: =ROUND((V33-X33),5) -> -3865 | AB33: =ROUND(IF(X33=0, IF(V33=0, 0, 1), V33/X33),5) -> 0.25068
E34: 66000 · Bank and Other Service Charges | F34: 462 | H34: 290 | J34: =ROUND((F34-H34),5) -> 172 | L34: =ROUND(IF(H34=0, IF(F34=0, 0, 1), F34/H34),5) -> 1.5931 | N34: 252 | P34: 290 | R34: =ROUND((N34-P34),5) -> -38 | T34: =ROUND(IF(P34=0, IF(N34=0, 0, 1), N34/P34),5) -> 0.86897 | V34: =ROUND(F34+N34,5) -> 714 | X34: =ROUND(H34+P34,5) -> 580 | Z34: =ROUND((V34-X34),5) -> 134 | AB34: =ROUND(IF(X34=0, IF(V34=0, 0, 1), V34/X34),5) -> 1.23103
E35: 67000 · Taxes and Fees | F35: 0 | H35: 0 | J35: =ROUND((F35-H35),5) -> 0 | L35: =ROUND(IF(H35=0, IF(F35=0, 0, 1), F35/H35),5) -> 0 | N35: 7112 | P35: 7000 | R35: =ROUND((N35-P35),5) -> 112 | T35: =ROUND(IF(P35=0, IF(N35=0, 0, 1), N35/P35),5) -> 1.016 | V35: =ROUND(F35+N35,5) -> 7112 | X35: =ROUND(H35+P35,5) -> 7000 | Z35: =ROUND((V35-X35),5) -> 112 | AB35: =ROUND(IF(X35=0, IF(V35=0, 0, 1), V35/X35),5) -> 1.016
E36: 68000 · Utilities | F36: 5149 | H36: 5801 | J36: =ROUND((F36-H36),5) -> -652 | L36: =ROUND(IF(H36=0, IF(F36=0, 0, 1), F36/H36),5) -> 0.88761 | N36: 5827 | P36: 5801 | R36: =ROUND((N36-P36),5) -> 26 | T36: =ROUND(IF(P36=0, IF(N36=0, 0, 1), N36/P36),5) -> 1.00448 | V36: =ROUND(F36+N36,5) -> 10976 | X36: =ROUND(H36+P36,5) -> 11602 | Z36: =ROUND((V36-X36),5) -> -626 | AB36: =ROUND(IF(X36=0, IF(V36=0, 0, 1), V36/X36),5) -> 0.94604
D37: Total Expense | F37: =ROUND(SUM(F13:F36),5) -> 141308 | H37: =ROUND(SUM(H13:H36),5) -> 145872 | J37: =ROUND((F37-H37),5) -> -4564 | L37: =ROUND(IF(H37=0, IF(F37=0, 0, 1), F37/H37),5) -> 0.96871 | N37: =ROUND(SUM(N13:N36),5) -> 142580 | P37: =ROUND(SUM(P13:P36),5) -> 159606 | R37: =ROUND((N37-P37),5) -> -17026 | T37: =ROUND(IF(P37=0, IF(N37=0, 0, 1), N37/P37),5) -> 0.89332 | V37: =ROUND(F37+N37,5) -> 283888 | X37: =ROUND(H37+P37,5) -> 305478 | Z37: =ROUND((V37-X37),5) -> -21590 | AB37: =ROUND(IF(X37=0, IF(V37=0, 0, 1), V37/X37),5) -> 0.92932
B38: Net Ordinary Income | F38: =ROUND(F3+F12-F37,5) -> -25843 | H38: =ROUND(H3+H12-H37,5) -> -54813 | J38: =ROUND((F38-H38),5) -> 28970 | L38: =ROUND(IF(H38=0, IF(F38=0, 0, 1), F38/H38),5) -> 0.47148 | N38: =ROUND(N3+N12-N37,5) -> -15271 | P38: =ROUND(P3+P12-P37,5) -> -52457 | R38: =ROUND((N38-P38),5) -> 37186 | T38: =ROUND(IF(P38=0, IF(N38=0, 0, 1), N38/P38),5) -> 0.29111 | V38: =ROUND(F38+N38,5) -> -41114 | X38: =ROUND(H38+P38,5) -> -107270 | Z38: =ROUND((V38-X38),5) -> 66156 | AB38: =ROUND(IF(X38=0, IF(V38=0, 0, 1), V38/X38),5) -> 0.38328
B39: Other Income/Expense
C40: Other Income
D41: 70001 · Interest & Dividend Income | F41: 1 | H41: 1 | J41: =ROUND((F41-H41),5) -> 0 | L41: =ROUND(IF(H41=0, IF(F41=0, 0, 1), F41/H41),5) -> 1 | N41: 0 | P41: 1 | R41: =ROUND((N41-P41),5) -> -1 | T41: =ROUND(IF(P41=0, IF(N41=0, 0, 1), N41/P41),5) -> 0 | V41: =ROUND(F41+N41,5) -> 1 | X41: =ROUND(H41+P41,5) -> 2 | Z41: =ROUND((V41-X41),5) -> -1 | AB41: =ROUND(IF(X41=0, IF(V41=0, 0, 1), V41/X41),5) -> 0.5
D42: 70011 · Assessment Fee Income | F42: 125 | H42: 125 | J42: =ROUND((F42-H42),5) -> 0 | L42: =ROUND(IF(H42=0, IF(F42=0, 0, 1), F42/H42),5) -> 1 | N42: 125 | P42: 125 | R42: =ROUND((N42-P42),5) -> 0 | T42: =ROUND(IF(P42=0, IF(N42=0, 0, 1), N42/P42),5) -> 1 | V42: =ROUND(F42+N42,5) -> 250 | X42: =ROUND(H42+P42,5) -> 250 | Z42: =ROUND((V42-X42),5) -> 0 | AB42: =ROUND(IF(X42=0, IF(V42=0, 0, 1), V42/X42),5) -> 1
D43: 70012 · Other Member Contributions | F43: 0 | H43: 0 | J43: =ROUND((F43-H43),5) -> 0 | L43: =ROUND(IF(H43=0, IF(F43=0, 0, 1), F43/H43),5) -> 0 | N43: 850 | P43: 0 | R43: =ROUND((N43-P43),5) -> 850 | T43: =ROUND(IF(P43=0, IF(N43=0, 0, 1), N43/P43),5) -> 1 | V43: =ROUND(F43+N43,5) -> 850 | X43: =ROUND(H43+P43,5) -> 0 | Z43: =ROUND((V43-X43),5) -> 850 | AB43: =ROUND(IF(X43=0, IF(V43=0, 0, 1), V43/X43),5) -> 1
B44: Net Other Income | F44: =ROUND(SUM(F40:F43),5) -> 126 | H44: =ROUND(SUM(H40:H43),5) -> 126 | J44: =ROUND((F44-H44),5) -> 0 | L44: =ROUND(IF(H44=0, IF(F44=0, 0, 1), F44/H44),5) -> 1 | N44: =ROUND(SUM(N40:N43),5) -> 975 | P44: =ROUND(SUM(P40:P43),5) -> 126 | R44: =ROUND((N44-P44),5) -> 849 | T44: =ROUND(IF(P44=0, IF(N44=0, 0, 1), N44/P44),5) -> 7.7381 | V44: =ROUND(F44+N44,5) -> 1101 | X44: =ROUND(H44+P44,5) -> 252 | Z44: =ROUND((V44-X44),5) -> 849 | AB44: =ROUND(IF(X44=0, IF(V44=0, 0, 1), V44/X44),5) -> 4.36905
A45: Net Income (loss) excluding depreciation | F45: =F38+F44 -> -25717 | H45: =H38+H44 -> -54687 | J45: =ROUND((F45-H45),5) -> 28970 | L45: =ROUND(IF(H45=0, IF(F45=0, 0, 1), F45/H45),5) -> 0.47026 | N45: =N38+N44 -> -14296 | P45: =P38+P44 -> -52331 | R45: =ROUND((N45-P45),5) -> 38035 | T45: =ROUND(IF(P45=0, IF(N45=0, 0, 1), N45/P45),5) -> 0.27318 | V45: =V38+V44 -> -40013 | X45: =X38+X44 -> -107018 | Z45: =ROUND((V45-X45),5) -> 67005 | AB45: =ROUND(IF(X45=0, IF(V45=0, 0, 1), V45/X45),5) -> 0.37389

Sheet Rev by Type YTD
F1: Events- Member | H1: Events- Member Referral & Other | J1: Events-Club | L1: Member Services | N1: TOTAL
B2: Ordinary Income/Expense
D3: Income
E4: 40000 · Member Dues and Fees | F4: 0 | H4: 0 | J4: 0 | L4: 132450 | N4: =ROUND(SUM(F4:L4),5) -> 132450
E5: 40100 · Meal Sales | F5: 12092 | H5: 8502 | J5: 5895 | L5: 60494 | N5: =ROUND(SUM(F5:L5),5) -> 86983
E6: 40200 · Beverage Sales | F6: 1500 | H6: 1500 | J6: 0 | L6: 11988 | N6: =ROUND(SUM(F6:L6),5) -> 14988
E7: 40300 · Service Fees | F7: 1449 | H7: 1299 | J7: 6 | L7: 4623 | N7: =ROUND(SUM(F7:L7),5) -> 7377
E8: 40800 · Other Income | F8: 0 | H8: 600 | J8: 0 | L8: 375 | N8: =ROUND(SUM(F8:L8),5) -> 975
D9: Total Income | F9: =ROUND(SUM(F3:F8),5) -> 15041 | H9: =ROUND(SUM(H3:H8),5) -> 11901 | J9: =ROUND(SUM(J3:J8),5) -> 5901 | L9: =ROUND(SUM(L3:L8),5) -> 209930 | N9: =ROUND(SUM(F9:L9),5) -> 242773
C10: Prior Year Revenues | F10: 7567 | H10: 2528 | J10: 3400 | L10: 191506 | N10: =ROUND(SUM(F10:L10),5) -> 205001
C11: Change from Prior Year | F11: =F9-F10 -> 7474 | H11: =H9-H10 -> 9373 | J11: =J9-J10 -> 2501 | L11: =L9-L10 -> 18424 | N11: =ROUND(SUM(F11:L11),5) -> 37772
C13: % of Total Revenues | F13: =F9/N9 -> 0.061954995 | H13: =H9/N9 -> 0.04902110202 | J13: =J9/N9 -> 0.02430665684 | L13: =L9/N9 -> 0.8647172462 | N13: =SUM(F13:L13) -> 1

Sheet Balance Sheet
E2: Feb 28, 23 | G2: Feb 28, 22 | I2: $ Change | K2: % Change
A3: ASSETS
B4: Current Assets
C5: Checking/Savings | E5: 472803 | G5: 598445 | I5: =ROUND((E5-G5),5) -> -125642 | K5: =ROUND(IF(E5=0, IF(G5=0, 0, SIGN(-G5)), IF(G5=0, SIGN(E5), (E5-G5)/ABS(G5))),5) -> -0.20995
C6: Accounts Receivable | E6: 109216 | G6: 83964 | I6: =ROUND((E6-G6),5) -> 25252 | K6: =ROUND(IF(E6=0, IF(G6=0, 0, SIGN(-G6)), IF(G6=0, SIGN(E6), (E6-G6)/ABS(G6))),5) -> 0.30075
C7: Other Current Assets | E7: 42756 | G7: 39967 | I7: =ROUND((E7-G7),5) -> 2789 | K7: =ROUND(IF(E7=0, IF(G7=0, 0, SIGN(-G7)), IF(G7=0, SIGN(E7), (E7-G7)/ABS(G7))),5) -> 0.06978
B8: Total Current Assets | E8: =ROUND(SUM(E4:E7),5) -> 624775 | G8: =ROUND(SUM(G4:G7),5) -> 722376 | I8: =ROUND((E8-G8),5) -> -97601 | K8: =ROUND(IF(E8=0, IF(G8=0, 0, SIGN(-G8)), IF(G8=0, SIGN(E8), (E8-G8)/ABS(G8))),5) -> -0.13511
B9: Fixed Assets | E9: 1042555 | G9: 695037 | I9: =ROUND((E9-G9),5) -> 347518 | K9: =ROUND(IF(E9=0, IF(G9=0, 0, SIGN(-G9)), IF(G9=0, SIGN(E9), (E9-G9)/ABS(G9))),5) -> 0.5
A10: TOTAL ASSETS | E10: =ROUND(E3+SUM(E8:E9),5) -> 1667330 | G10: =ROUND(G3+SUM(G8:G9),5) -> 1417413 | I10: =ROUND((E10-G10),5) -> 249917 | K10: =ROUND(IF(E10=0, IF(G10=0, 0, SIGN(-G10)), IF(G10=0, SIGN(E10), (E10-G10)/ABS(G10))),5) -> 0.17632
A11: LIABILITIES & EQUITY
B12: Liabilities
C13: Current Liabilities
D14: Accounts Payable | E14: 33706 | G14: 27342 | I14: =ROUND((E14-G14),5) -> 6364 | K14: =ROUND(IF(E14=0, IF(G14=0, 0, SIGN(-G14)), IF(G14=0, SIGN(E14), (E14-G14)/ABS(G14))),5) -> 0.23276
D15: Other Current Liabilities | E15: 13335 | G15: 2421 | I15: =ROUND((E15-G15),5) -> 10914 | K15: =ROUND(IF(E15=0, IF(G15=0, 0, SIGN(-G15)), IF(G15=0, SIGN(E15), (E15-G15)/ABS(G15))),5) -> 4.50805
C16: Total Current Liabilities | E16: =ROUND(SUM(E13:E15),5) -> 47041 | G16: =ROUND(SUM(G13:G15),5) -> 29763 | I16: =ROUND((E16-G16),5) -> 17278 | K16: =ROUND(IF(E16=0, IF(G16=0, 0, SIGN(-G16)), IF(G16=0, SIGN(E16), (E16-G16)/ABS(G16))),5) -> 0.58052
B17: Total Liabilities | E17: =ROUND(E12+E16,5) -> 47041 | G17: =ROUND(G12+G16,5) -> 29763 | I17: =ROUND((E17-G17),5) -> 17278 | K17: =ROUND(IF(E17=0, IF(G17=0, 0, SIGN(-G17)), IF(G17=0, SIGN(E17), (E17-G17)/ABS(G17))),5) -> 0.58052
B18: Equity | E18: 1620290 | G18: 1387649 | I18: =ROUND((E18-G18),5) -> 232641 | K18: =ROUND(IF(E18=0, IF(G18=0, 0, SIGN(-G18)), IF(G18=0, SIGN(E18), (E18-G18)/ABS(G18))),5) -> 0.16765
A19: TOTAL LIABILITIES & EQUITY | E19: =ROUND(E11+SUM(E17:E18),5) -> 1667331 | G19: =ROUND(G11+SUM(G17:G18),5) -> 1417412 | I19: =ROUND((E19-G19),5) -> 249919 | K19: =ROUND(IF(E19=0, IF(G19=0, 0, SIGN(-G19)), IF(G19=0, SIGN(E19), (E19-G19)/ABS(G19))),5) -> 0.17632
